[Event "CZE-tht Extraliga 2018-19"]
[Site "Czech Republic"]
[Date "2019.01.12"]
[Round "5"]
[White "Bernasek, Jan"]
[Black "Roubalik, Jakub"]
[Result "1-0"]
[ECO "A04"]
[WhiteElo "2477"]
[BlackElo "2410"]
[Annotator "ChessBase"]
[PlyCount "191"]
[EventDate "2018.11.03"]
[EventType "team-tourn"]
[EventCountry "CZE"]
[SourceTitle "playchess.com"]
[Source "ChessBase"]
[SourceQuality "1"]
[WhiteTeam "Siesta"]
[BlackTeam "Duras"]
[TimeControl "40/5400+30:1800+30"]

1. Nf3 {[%emt 0:00:13]} c5 {[%emt 0:00:00]} 2. b3 {[%emt 0:01:11]} d6 {[%emt 0:01:34]} 3. c4 {[%emt 0:04:53]} e5 {[%emt 0:01:19]} 4. Nc3 {[%emt 0:00:08]} Nc6 {[%emt 0:01:58]} 5. g3 {[%emt 0:01:51]} g6 {[%emt 0:01:03]} 6. Bg2 {[%emt 0:01:24]} Bg7 {[%emt 0:00:45]} 7. O-O {[%emt 0:01:05]} Nge7 {[%emt 0:02:58]} 8. Bb2 {[%emt 0:04:38]} O-O {[%emt 0:00:50]} 9. Ne1 {[%emt 0:00:46]} f5 {[%emt 0:11:47]} 10. f4 {[%emt 0:05:00]} Be6 {[%emt 0:16:12]} 11. Rc1 {[%emt 0:21:31]} Qd7 {[%emt 0:11:53]} 12. Nc2 {[%emt 0:03:22]} exf4 {[%emt 0:07:10]} 13. gxf4 {[%emt 0:00:26]} d5 {[%emt 0:00:12]} 14. Na4 {[%emt 0:07:24]} Bxb2 {[%emt 0:04:02]} 15. Nxb2 {[%emt 0:00:57]} Rad8 {[%emt 0:02:11]} 16. d3 {[%emt 0:05:51]} Rfe8 {[%emt 0:10:31]} 17. Qe1 {[%emt 0:04:45]} Bf7 {[%emt 0:01:55]} 18. Qf2 {[%emt 0:03:09]} d4 {[%emt 0:03:14]} 19. a3 {[%emt 0:03:41]} a5 {[%emt 0:01:29]} 20. Na4 {[%emt 0:04:04]} Qd6 {[%emt 0:00:06]} 21. Rb1 {[%emt 0:01:00]} Kg7 {[%emt 0:00:23]} 22. b4 {[%emt 0:08:40]} axb4 {[%emt 0:00:25]} 23. axb4 {[%emt 0:00:04]} cxb4 {[%emt 0:01:10]} 24. c5 {[%emt 0:02:34]} Qc7 {[%emt 0:08:56]} 25. Nxb4 {[%emt 0:01:01]} Qa5 {[%emt 0:00:09]} 26. Nxc6 {[%emt 0:05:15]} Nxc6 {[%emt 0:00:27]} 27. Nb6 {[%emt 0:00:39]} Qxc5 {[%emt 0:00:55]} 28. Rfc1 {[%emt 0:00:14]} Qe7 {[%emt 0:00:54]} 29. Bf3 {[%emt 0:01:21]} Qd6 {[%emt 0:04:39]} 30. Qh4 {[%emt 0:04:21]} Re7 {[%emt 0:02:42]} 31. Nc4 {[%emt 0:00:30]} Bxc4 {[%emt 0:00:53]} 32. Rxc4 {[%emt 0:00:03]} Rde8 {[%emt 0:00:26]} 33. Kf1 {[%emt 0:01:01]} Ra8 {[%emt 0:02:31]} 34. Bxc6 {[%emt 0:02:46]} bxc6 {[%emt 0:00:13]} 35. Rxc6 {[%emt 0:00:15]} Qxc6 {[%emt 0:01:01]} 36. Qxe7+ {[%emt 0:00:04]} Kg8 {[%emt 0:00:07]} 37. Kf2 {[%emt 0:01:18]} Re8 {[%emt 0:00:29]} 38. Qb4 {[%emt 0:00:55]} Qf6 {[%emt 0:00:47]} 39. Qc4+ {[%emt 0:00:12]} Kg7 {[%emt 0:00:38]} 40. Kf1 {[%emt 0:00:26]} Kh6 {[%emt 0:00:33]} 41. Rb7 {[%emt 0:03:17]} Qd6 {[%emt 0:06:26]} 42. Qc7 {[%emt 0:03:36]} Qxc7 {[%emt 0:00:11]} 43. Rxc7 {[%emt 0:00:04]} Re3 {[%emt 0:09:33]} 44. Rd7 {[%emt 0:11:53]} Rh3 {[%emt 0:00:08]} 45. Rxd4 {[%emt 0:00:04]} Rxh2 {[%emt 0:00:10]} 46. Rd7 {[%emt 0:00:08]} g5 {[%emt 0:07:04]} 47. Rd5 {[%emt 0:01:27]} Rh4 {[%emt 0:04:20]} 48. fxg5+ {[%emt 0:01:13]} Kxg5 {[%emt 0:00:16]} 49. e4 {[%emt 0:00:06]} Rf4+ {[%emt 0:00:14]} 50. Ke2 {[%emt 0:00:04]} Kg4 {[%emt 0:01:46]} 51. e5 {[%emt 0:01:04]} Ra4 {[%emt 0:00:09]} 52. e6 {[%emt 0:00:28]} Ra2+ {[%emt 0:00:23]} 53. Ke3 {[%emt 0:01:28]} f4+ {[%emt 0:00:17]} 54. Kd4 {[%emt 0:00:11]} Re2 {[%emt 0:05:17]} 55. Re5 {[%emt 0:01:09]} f3 {[%emt 0:00:15]} 56. e7 {[%emt 0:00:15]} Rxe5 {[%emt 0:00:11]} 57. Kxe5 {[%emt 0:00:03]} f2 {[%emt 0:00:03]} 58. e8=Q {[%emt 0:00:08]} f1=Q {[%emt 0:00:04]} 59. Qg8+ {[%emt 0:01:52]} Kh5 {[%emt 0:01:28]} 60. Qxh7+ {[%emt 0:00:29]} Kg5 {[%emt 0:00:05]} 61. Qg8+ {[%emt 0:01:27]} Kh5 {[%emt 0:00:38]} 62. Qd5 {[%emt 0:01:38]} Kg4 {[%emt 0:01:02]} 63. Ke6 {[%emt 0:01:34]} Qb1 {[%emt 0:01:16]} 64. Qe4+ {[%emt 0:03:58]} Kg3 {[%emt 0:00:00]} 65. Qe5+ {[%emt 0:00:30]} Kg2 {[%emt 0:00:33]} 66. d4 {[%emt 0:00:07]} Kg1 {[%emt 0:01:07]} 67. d5 {[%emt 0:00:28]} Qb3 {[%emt 0:00:11]} 68. Ke7 {[%emt 0:00:38]} Qb7+ {[%emt 0:00:22]} 69. Kf6 {[%emt 0:00:05]} Kh1 {[%emt 0:01:03]} 70. d6 {[%emt 0:01:38]} Qf3+ {[%emt 0:00:26]} 71. Ke7 {[%emt 0:00:08]} Qa3 {[%emt 0:00:12]} 72. Ke6 {[%emt 0:00:12]} Qa6 {[%emt 0:00:21]} 73. Qc5 {[%emt 0:01:31]} Qe2+ {[%emt 0:00:46]} 74. Kf6 {[%emt 0:00:09]} Qf2+ {[%emt 0:00:15]} 75. Qf5 {[%emt 0:00:39]} Qd4+ {[%emt 0:00:38]} 76. Ke6 {[%emt 0:00:16]} Qb6 {[%emt 0:00:16]} 77. Qd5+ {[%emt 0:00:23]} Kg1 {[%emt 0:00:15]} 78. Kf7 {[%emt 0:00:29]} Qf2+ {[%emt 0:00:38]} 79. Kg6 {[%emt 0:00:16]} Qg3+ {[%emt 0:00:34]} 80. Kf7 {[%emt 0:01:01]} Qf4+ {[%emt 0:00:27]} 81. Ke8 {[%emt 0:00:25]} Qe3+ {[%emt 0:00:18]} 82. Kd8 {[%emt 0:00:35]} Qb6+ {[%emt 0:00:59]} 83. Kc8 {[%emt 0:00:14]} Qa6+ {[%emt 0:00:13]} 84. Kc7 {[%emt 0:00:16]} Qa7+ {[%emt 0:00:14]} 85. Qb7 {[%emt 0:00:23]} Qc5+ {[%emt 0:00:06]} 86. Qc6 {[%emt 0:00:06]} Qe5 {[%emt 0:00:30]} 87. Kb7 {[%emt 0:00:09]} Qg7+ {[%emt 0:01:40]} 88. d7 {[%emt 0:00:08]} Qf7 {[%emt 0:00:27]} 89. Qc5+ Kh1 {[%emt 0:00:34]} 90. Qc1+ {[%emt 0:01:58]} Kg2 {[%emt 0:00:16]} 91. Qd2+ {[%emt 0:00:06]} Kh1 {[%emt 0:00:08]} 92. Qe1+ {[%emt 0:00:08]} Kg2 {[%emt 0:00:34]} 93. Qe4+ {[%emt 0:00:05]} Kg1 {[%emt 0:00:33]} 94. Kc8 {[%emt 0:00:05]} Qf8+ {[%emt 0:01:04]} 95. d8=Q {[%emt 0:00:27]} Qc5+ {[%emt 0:00:03]} 96. Kb7 {[%emt 0:00:22]} 1-0

[Event "CZE-tht Extraliga 2018-19"]
[Site "Czech Republic"]
[Date "2019.01.12"]
[Round "5"]
[White "Rasik, Vitezslav"]
[Black "Wiewiora, Eneasz"]
[Result "1/2-1/2"]
[ECO "B07"]
[WhiteElo "2461"]
[BlackElo "2354"]
[Annotator "ChessBase"]
[PlyCount "49"]
[EventDate "2018.11.03"]
[EventType "team-tourn"]
[EventCountry "CZE"]
[SourceTitle "playchess.com"]
[Source "ChessBase"]
[SourceQuality "1"]
[WhiteTeam "Ostrava"]
[BlackTeam "Cesky Tesin"]
[TimeControl "40/5400+30:1800+30"]

1. e4 {[%emt 0:00:00]} d6 {[%emt 0:00:00]} 2. d4 {[%emt 0:00:00]} Nf6 {[%emt 0:00:00]} 3. Nc3 {[%emt 0:00:08]} e5 {[%emt 0:00:00]} 4. f3 {[%emt 0:01:06]} Be7 {[%emt 0:00:45]} 5. Be3 {[%emt 0:01:09]} c6 {[%emt 0:00:09]} 6. Qd2 {[%emt 0:02:16]} b5 {[%emt 0:02:28]} 7. dxe5 {[%emt 0:09:50]} dxe5 {[%emt 0:00:38]} 8. Qxd8+ {[%emt 0:00:26]} Bxd8 {[%emt 0:00:29]} 9. a4 {[%emt 0:02:54]} b4 {[%emt 0:05:13]} 10. Nb1 {[%emt 0:07:59]} Bb6 {[%emt 0:09:11]} 11. Kf2 {[%emt 0:02:20]} Be6 {[%emt 0:01:43]} 12. Ne2 {[%emt 0:03:56]} Nbd7 {[%emt 0:00:44]} 13. Nd2 {[%emt 0:03:47]} Ke7 {[%emt 0:02:01]} 14. a5 {[%emt 0:06:28]} Bxe3+ {[%emt 0:04:02]} 15. Kxe3 {[%emt 0:00:10]} Ne8 {[%emt 0:00:02]} 16. Nc1 {[%emt 0:07:08]} Nd6 {[%emt 0:00:58]} 17. Be2 {[%emt 0:02:05]} Rab8 {[%emt 0:14:45]} 18. Rd1 {[%emt 0:12:00]} g6 {[%emt 0:03:37]} 19. Nd3 {[%emt 0:06:57]} c5 {[%emt 0:11:24]} 20. f4 {[%emt 0:04:55]} exf4+ {[%emt 0:04:01]} 21. Nxf4 {[%emt 0:00:11]} Ne5 {[%emt 0:00:03]} 22. Nd3 {[%emt 0:01:58]} Nd7 {[%emt 0:05:21]} 23. Nf4 {[%emt 0:01:10]} Ne5 {[%emt 0:00:10]} 24. Nd3 {[%emt 0:00:18]} Nd7 {[%emt 0:00:22]} 25. Nf4 {[%emt 0:01:29]} 1/2-1/2

[Event "CZE-tht Extraliga 2018-19"]
[Site "Czech Republic"]
[Date "2019.01.12"]
[Round "5"]
[White "Vykouk, Jan"]
[Black "Oral, Tomas"]
[Result "1/2-1/2"]
[ECO "B40"]
[WhiteElo "2435"]
[BlackElo "2509"]
[Annotator "ChessBase"]
[PlyCount "53"]
[EventDate "2018.11.03"]
[EventType "team-tourn"]
[EventCountry "CZE"]
[SourceTitle "playchess.com"]
[Source "ChessBase"]
[SourceQuality "1"]
[WhiteTeam "Turnov"]
[BlackTeam "Lysa nad Labem"]
[TimeControl "40/5400+30:1800+30"]

1. e4 {[%emt 0:00:00]} c5 {[%emt 0:00:00]} 2. Nf3 {[%emt 0:00:00]} e6 {[%emt 0:00:27]} 3. b3 {[%emt 0:01:21]} b6 {[%emt 0:00:37]} 4. Bb2 {[%emt 0:00:38]} Bb7 {[%emt 0:00:07]} 5. e5 {[%emt 0:02:36]} a6 {[%emt 0:08:48]} 6. Bd3 {[%emt 0:03:22]} d6 {[%emt 0:01:52]} 7. exd6 {[%emt 0:00:22]} Nf6 {[%emt 0:00:36]} 8. Nc3 {[%emt 0:01:49]} Bxd6 {[%emt 0:06:17]} 9. Qe2 {[%emt 0:00:08]} Nc6 {[%emt 0:01:05]} 10. Ne4 {[%emt 0:16:30]} Be7 {[%emt 0:01:52]} 11. O-O {[%emt 0:00:06]} O-O {[%emt 0:09:20]} 12. Nfg5 {[%emt 0:01:10]} g6 {[%emt 0:00:54]} 13. Qf3 {[%emt 0:05:23]} Nxe4 {[%emt 0:07:34]} 14. Nxe4 {[%emt 0:03:03]} e5 {[%emt 0:03:39]} 15. Nc3 {[%emt 0:01:33]} Bf6 {[%emt 0:04:17]} 16. Qd5 {[%emt 0:05:32]} Qc7 {[%emt 0:02:47]} 17. Ne4 {[%emt 0:02:49]} Bg7 {[%emt 0:02:38]} 18. Qd6 {[%emt 0:01:00]} Qc8 {[%emt 0:03:34]} 19. f4 {[%emt 0:10:03]} Rd8 {[%emt 0:04:31]} 20. Bc4 {[%emt 0:00:05]} Rxd6 {[%emt 0:05:00]} 21. Nxd6 {[%emt 0:00:05]} Qc7 {[%emt 0:01:07]} 22. Nxf7 {[%emt 0:00:29]} Nd4 {[%emt 0:17:40]} 23. Bxd4 {[%emt 0:18:19]} cxd4 {[%emt 0:00:31]} 24. Ng5+ {[%emt 0:00:08]} Kh8 {[%emt 0:00:26]} 25. Nf7+ {[%emt 0:00:05]} Kg8 {[%emt 0:00:08]} 26. Ng5+ {[%emt 0:00:05]} Kh8 {[%emt 0:00:36]} 27. Nf7+ {[%emt 0:00:06] h6} 1/2-1/2

[Event "CZE-tht Extraliga 2018-19"]
[Site "Czech Republic"]
[Date "2019.01.12"]
[Round "5"]
[White "Kislinsky, Alexey"]
[Black "Kraus, Tomas"]
[Result "1-0"]
[ECO "C34"]
[WhiteElo "2425"]
[BlackElo "2447"]
[Annotator "NA"]
[PlyCount "43"]
[EventDate "2018.11.03"]
[EventType "team-tourn"]
[EventCountry "CZE"]
[SourceTitle "playchess.com"]
[Source "ChessBase"]
[SourceQuality "1"]
[WhiteTeam "Lysa nad Labem"]
[BlackTeam "Turnov"]
[TimeControl "40/5400+30:1800+30"]

1. e4 {[%emt 0:00:28]} e5 {[%emt 0:00:00]} 2. f4 {[%emt 0:00:46]} exf4 {[%emt 0:00:00]} 3. Nf3 {[%emt 0:00:04]} h6 {[%emt 0:00:04]} 4. d4 {[%emt 0:01:09]} g5 {[%emt 0:01:32]} 5. Nc3 {[%emt 0:00:52]} d6 {[%emt 0:02:53]} 6. g3 {[%emt 0:01:32]} Bg7 {[%emt 0:01:27]} 7. gxf4 {[%emt 0:02:52]} g4 {[%emt 0:00:22]} 8. Rg1 {[%emt 0:01:14]} Kf8 {[%emt 0:10:38]} 9. Be3 {[%emt 0:02:20]} gxf3 {[%emt 0:00:26]} 10. Qxf3 {[%emt 0:00:24]} f5 {[%emt 0:03:38]} 11. Qg3 {[%emt 0:17:55]} Qd7 {[%emt 0:26:02]} 12. Bc4 {[%emt 0:04:27]} Nf6 {[%emt 0:39:00]} 13. Be6 {[%emt 0:01:09]} Qe7 {[%emt 0:00:14]} 14. Bxc8 {[%emt 0:00:16]} Nbd7 {[%emt 0:00:13]} 15. Bxd7 {[%emt 0:01:01]} Qxd7 {[%emt 0:00:13]} 16. e5 {[%emt 0:00:16]} Ng4 {[%emt 0:02:07]} 17. O-O-O {[%emt 0:03:41]} Rg8 {[%emt 0:01:34]} 18. Bd2 {[%emt 0:02:51]} h5 {[%emt 0:03:44]} 19. h3 {[%emt 0:00:09]} Nh6 {[%emt 0:00:04]} 20. Qf3 {[%emt 0:00:19]} c6 {[%emt 0:01:00]} 21. Rg6 {[%emt 0:00:47]} d5 {[%emt 0:00:27]} 22. Qxh5 {[%emt 0:00:15]} 1-0

[Event "CZE-tht Extraliga 2018-19"]
[Site "Czech Republic"]
[Date "2019.01.12"]
[Round "5"]
[White "Blahynka, Martin"]
[Black "Cernousek, Lukas"]
[Result "1/2-1/2"]
[ECO "B12"]
[WhiteElo "2418"]
[BlackElo "2434"]
[Annotator "NA"]
[PlyCount "22"]
[EventDate "2018.11.03"]
[EventType "team-tourn"]
[EventCountry "CZE"]
[SourceTitle "playchess.com"]
[Source "ChessBase"]
[SourceQuality "1"]
[WhiteTeam "Duras"]
[BlackTeam "Siesta"]
[TimeControl "40/5400+30:1800+30"]

1. e4 {[%emt 0:00:00]} c6 {[%emt 0:00:00]} 2. d4 {[%emt 0:00:00]} d5 {[%emt 0:00:00]} 3. e5 {[%emt 0:00:00]} c5 {[%emt 0:00:02]} 4. dxc5 {[%emt 0:00:06]} e6 {[%emt 0:00:04]} 5. Be3 {[%emt 0:00:39]} Nd7 {[%emt 0:00:12]} 6. Nf3 {[%emt 0:11:59]} Bxc5 {[%emt 0:00:09]} 7. Bxc5 {[%emt 0:00:23]} Nxc5 {[%emt 0:00:02]} 8. Nc3 {[%emt 0:02:50]} Ne7 {[%emt 0:10:00]} 9. Bd3 {[%emt 0:00:52]} Qb6 {[%emt 0:13:15]} 10. O-O {[%emt 0:07:28]} Bd7 {[%emt 0:01:53]} 11. Rb1 {[%emt 0:20:56]} Rc8 {[%emt 0:03:52]} 1/2-1/2

[Event "CZE-tht Extraliga 2018-19"]
[Site "Czech Republic"]
[Date "2019.01.12"]
[Round "5"]
[White "Biolek, Richard"]
[Black "Kawulok, Marek"]
[Result "1-0"]
[ECO "A05"]
[WhiteElo "2405"]
[BlackElo "2204"]
[Annotator "NA"]
[PlyCount "75"]
[EventDate "2018.11.03"]
[EventType "team-tourn"]
[EventCountry "CZE"]
[SourceTitle "playchess.com"]
[Source "ChessBase"]
[SourceQuality "1"]
[WhiteTeam "Ostrava"]
[BlackTeam "Cesky Tesin"]
[TimeControl "40/5400+30:1800+30"]

1. Nf3 {[%emt 0:00:00]} Nf6 {[%emt 0:00:00]} 2. g3 {[%emt 0:00:06]} g6 {[%emt 0:00:00]} 3. Bg2 {[%emt 0:00:05]} Bg7 {[%emt 0:00:00]} 4. O-O {[%emt 0:00:06]} O-O {[%emt 0:00:00]} 5. c4 {[%emt 0:00:04]} d6 {[%emt 0:00:39]} 6. Nc3 {[%emt 0:00:14]} c5 {[%emt 0:01:52]} 7. a3 {[%emt 0:04:32]} Nc6 {[%emt 0:01:49]} 8. Rb1 {[%emt 0:00:16]} a5 {[%emt 0:05:22]} 9. d3 {[%emt 0:01:16]} Rb8 {[%emt 0:03:07]} 10. Bd2 {[%emt 0:02:28]} Ne8 {[%emt 0:04:06]} 11. Ne1 {[%emt 0:07:41]} Bd7 {[%emt 0:05:31]} 12. Nc2 {[%emt 0:00:11]} Nc7 {[%emt 0:00:04]} 13. b4 {[%emt 0:02:52]} axb4 {[%emt 0:13:20]} 14. axb4 {[%emt 0:00:17]} cxb4 {[%emt 0:00:08]} 15. Nxb4 {[%emt 0:01:32]} Nxb4 {[%emt 0:00:06]} 16. Rxb4 {[%emt 0:00:04]} b5 {[%emt 0:00:13]} 17. cxb5 {[%emt 0:02:19]} Nxb5 {[%emt 0:00:07]} 18. Nxb5 {[%emt 0:06:40]} Rxb5 {[%emt 0:00:14]} 19. Rxb5 {[%emt 0:05:19]} Bxb5 {[%emt 0:00:07]} 20. Qb3 {[%emt 0:00:13]} Qd7 {[%emt 0:01:26]} 21. Rc1 {[%emt 0:01:09]} Ba4 {[%emt 0:24:55]} 22. Qb4 {[%emt 0:02:08]} Qb5 {[%emt 0:02:32]} 23. Qxb5 {[%emt 0:09:54]} Bxb5 {[%emt 0:00:05]} 24. Rb1 {[%emt 0:00:05]} Ba4 {[%emt 0:00:12]} 25. Rb4 {[%emt 0:12:29]} Bc2 {[%emt 0:00:36]} 26. Bg5 {[%emt 0:02:15]} f6 {[%emt 0:12:58]} 27. Bd5+ {[%emt 0:00:43]} Kh8 {[%emt 0:00:05]} 28. Be3 {[%emt 0:02:00]} e5 {[%emt 0:00:05]} 29. Kf1 {[%emt 0:10:43]} f5 {[%emt 0:07:29]} 30. Ke1 {[%emt 0:02:30]} Rc8 {[%emt 0:03:10]} 31. Be6 {[%emt 0:13:34]} Re8 {[%emt 0:01:15]} 32. Bd7 {[%emt 0:02:02]} Rd8 {[%emt 0:00:08]} 33. Kd2 {[%emt 0:00:06]} Bf6 {[%emt 0:04:30]} 34. Be6 {[%emt 0:03:45]} Re8 {[%emt 0:00:54]} 35. Bh6 {[%emt 0:03:32]} Bg7 {[%emt 0:00:42]} 36. Bxg7+ {[%emt 0:00:18]} Kxg7 {[%emt 0:00:07]} 37. Rb7+ {[%emt 0:00:06]} Kf6 {[%emt 0:00:39]} 38. Bd7 {[%emt 0:00:38]} 1-0

[Event "CZE-tht Extraliga 2018-19"]
[Site "Czech Republic"]
[Date "2019.01.12"]
[Round "5"]
[White "Vlasak, Lukas"]
[Black "Rogozenco, Dorian"]
[Result "1/2-1/2"]
[ECO "D00"]
[WhiteElo "2401"]
[BlackElo "2500"]
[Annotator "ChessBase"]
[PlyCount "42"]
[EventDate "2018.11.03"]
[EventType "team-tourn"]
[EventCountry "CZE"]
[SourceTitle "playchess.com"]
[Source "ChessBase"]
[SourceQuality "1"]
[WhiteTeam "Turnov"]
[BlackTeam "Lysa nad Labem"]
[TimeControl "40/5400+30:1800+30"]

1. d4 d5 2. Bf4 c5 3. e3 Nc6 4. c3 Nf6 5. Nd2 Bf5 6. Ngf3 e6 7. Nh4 Be4 8. Qb3 Qd7 9. Nhf3 c4 10. Qd1 Bg6 11. Ne5 Nxe5 12. Bxe5 Be7 13. Be2 O-O 14. Bxf6 Bxf6 15. Bh5 Bd3 16. Be2 Bxe2 17. Qxe2 b5 18. O-O a5 19. a3 b4 20. axb4 axb4 21. Rfb1 Be7 1/2-1/2

[Event "CZE-tht Extraliga 2018-19"]
[Site "Czech Republic"]
[Date "2019.01.12"]
[Round "5"]
[White "Hollan, Martin"]
[Black "Talla, Vladimir"]
[Result "0-1"]
[ECO "D31"]
[WhiteElo "2368"]
[BlackElo "2399"]
[Annotator "NA"]
[PlyCount "146"]
[EventDate "2018.11.03"]
[EventType "team-tourn"]
[EventCountry "CZE"]
[SourceTitle "playchess.com"]
[Source "ChessBase"]
[SourceQuality "1"]
[WhiteTeam "Cesky Tesin"]
[BlackTeam "Ostrava"]
[TimeControl "40/5400+30:1800+30"]

1. d4 {[%emt 0:00:05]} d5 {[%emt 0:00:00]} 2. c4 {[%emt 0:00:09]} e6 {[%emt 0:00:00]} 3. Nc3 {[%emt 0:00:08]} Be7 {[%emt 0:00:07]} 4. Nf3 {[%emt 0:00:17]} Nf6 {[%emt 0:00:57]} 5. Bg5 {[%emt 0:00:27]} h6 {[%emt 0:00:04]} 6. Bxf6 {[%emt 0:02:08]} Bxf6 {[%emt 0:00:11]} 7. cxd5 {[%emt 0:01:31]} exd5 {[%emt 0:00:06]} 8. e3 {[%emt 0:00:08]} O-O {[%emt 0:02:59]} 9. Bd3 {[%emt 0:01:28]} c6 {[%emt 0:15:34]} 10. O-O {[%emt 0:00:09]} Be6 {[%emt 0:00:36]} 11. b4 {[%emt 0:12:20]} a6 {[%emt 0:09:28]} 12. a4 {[%emt 0:03:07]} Nd7 {[%emt 0:00:04]} 13. a5 {[%emt 0:01:41]} Qc7 {[%emt 0:10:09]} 14. Na4 {[%emt 0:02:45]} Rae8 {[%emt 0:01:50]} 15. Nc5 {[%emt 0:11:09]} Nxc5 {[%emt 0:12:16]} 16. bxc5 {[%emt 0:00:11]} Bc8 {[%emt 0:00:11]} 17. Qc2 {[%emt 0:28:55]} g6 {[%emt 0:02:20]} 18. Nd2 {[%emt 0:02:54]} Bg7 {[%emt 0:03:12]} 19. Qc3 {[%emt 0:09:25]} Qd8 {[%emt 0:12:16]} 20. Rae1 {[%emt 0:03:24]} g5 {[%emt 0:08:42]} 21. f4 {[%emt 0:02:29]} g4 {[%emt 0:00:45]} 22. f5 {[%emt 0:01:24]} Qf6 {[%emt 0:03:34]} 23. Rf4 {[%emt 0:10:44]} h5 {[%emt 0:01:44]} 24. Nf1 {[%emt 0:00:16]} Qg5 {[%emt 0:01:53]} 25. Qd2 {[%emt 0:04:08]} Bf6 {[%emt 0:02:59]} 26. Qf2 {[%emt 0:00:28]} Re7 {[%emt 0:00:22]} 27. g3 {[%emt 0:01:01]} Rfe8 {[%emt 0:02:29]} 28. Nd2 {[%emt 0:00:23]} Qg7 {[%emt 0:00:35]} 29. Kg2 {[%emt 0:00:30]} Qh8 {[%emt 0:00:39]} 30. Nb3 {[%emt 0:00:37]} Bg5 {[%emt 0:03:36]} 31. f6 {[%emt 0:00:34]} Bxf4 {[%emt 0:00:16]} 32. fxe7 {[%emt 0:00:29]} Bg5 {[%emt 0:00:23]} 33. Bf5 {[%emt 0:00:24]} Bxf5 {[%emt 0:01:56]} 34. Qxf5 {[%emt 0:00:02]} Qf6 {[%emt 0:00:04]} 35. Qxf6 {[%emt 0:01:01]} Bxf6 {[%emt 0:00:02]} 36. Nc1 {[%emt 0:00:31]} Rxe7 {[%emt 0:01:55]} 37. Nd3 {[%emt 0:00:22]} Bg5 {[%emt 0:00:16]} 38. Kf2 {[%emt 0:00:05]} Kg7 {[%emt 0:01:00]} 39. Re2 {[%emt 0:01:06]} Re6 {[%emt 0:01:50]} 40. Re1 {[%emt 0:00:27]} Re8 {[%emt 0:01:47]} 41. Ne5 {[%emt 0:06:17]} Bd8 {[%emt 0:02:01]} 42. Rb1 {[%emt 0:03:45]} Re7 {[%emt 0:00:07]} 43. Ra1 {[%emt 0:00:03]} Bc7 {[%emt 0:01:58]} 44. Nd3 {[%emt 0:00:41]} h4 {[%emt 0:00:45]} 45. Ne1 {[%emt 0:14:16]} Kf6 {[%emt 0:07:20]} 46. Ng2 {[%emt 0:01:02]} hxg3+ {[%emt 0:01:29]} 47. hxg3 {[%emt 0:00:05]} Kf5 {[%emt 0:00:17]} 48. Nf4 {[%emt 0:02:22]} Re8 {[%emt 0:04:08]} 49. Ra3 {[%emt 0:03:58]} Bxf4 {[%emt 0:06:15]} 50. exf4 {[%emt 0:00:14]} Rh8 {[%emt 0:00:02]} 51. Rb3 {[%emt 0:01:36]} Ke4 {[%emt 0:05:47]} 52. Rxb7 {[%emt 0:00:21]} f5 {[%emt 0:00:51]} 53. Rb6 {[%emt 0:00:13]} Rh2+ {[%emt 0:02:21]} 54. Ke1 {[%emt 0:01:12]} Rh6 {[%emt 0:00:56]} 55. Rxa6 {[%emt 0:01:26]} Kxd4 {[%emt 0:00:03]} 56. Ra8 {[%emt 0:00:31]} Kxc5 {[%emt 0:00:55]} 57. Rf8 {[%emt 0:00:04]} Rh5 {[%emt 0:02:45]} 58. a6 {[%emt 0:00:36]} Kb6 {[%emt 0:00:02]} 59. Rf6 {[%emt 0:00:04]} Kxa6 {[%emt 0:00:18]} 60. Rxc6+ {[%emt 0:00:05]} Kb5 {[%emt 0:00:02]} 61. Rc8 {[%emt 0:00:40]} Rh2 {[%emt 0:01:21]} 62. Rf8 {[%emt 0:00:37]} Rg2 {[%emt 0:00:30]} 63. Rxf5 {[%emt 0:00:30]} Kc4 {[%emt 0:00:03]} 64. Rg5 {[%emt 0:00:43]} Rxg3 {[%emt 0:00:33]} 65. f5 {[%emt 0:00:08]} d4 {[%emt 0:01:23]} 66. f6 {[%emt 0:00:04]} Rf3 {[%emt 0:01:04]} 67. Rxg4 {[%emt 0:00:04]} Kc3 {[%emt 0:00:26]} 68. Rg6 {[%emt 0:01:49]} Rf5 {[%emt 0:00:26]} 69. Rg3+ {[%emt 0:01:06]} d3 {[%emt 0:00:38]} 70. Rh3 {[%emt 0:00:34]} Kc2 {[%emt 0:00:29]} 71. Rh2+ {[%emt 0:00:03]} Kc1 {[%emt 0:00:13]} 72. Rf2 {[%emt 0:00:58]} Re5+ {[%emt 0:00:26]} 73. Kf1 {[%emt 0:00:06]} d2 {[%emt 0:00:05]} 0-1

[Event "CZE-tht Extraliga 2018-19"]
[Site "Czech Republic"]
[Date "2019.01.12"]
[Round "5"]
[White "Szotkowski, Jakub"]
[Black "Bures, Jaroslav"]
[Result "1/2-1/2"]
[ECO "D11"]
[WhiteElo "2357"]
[BlackElo "2388"]
[Annotator "NA"]
[PlyCount "73"]
[EventDate "2018.11.03"]
[EventType "team-tourn"]
[EventCountry "CZE"]
[SourceTitle "playchess.com"]
[Source "ChessBase"]
[SourceQuality "1"]
[WhiteTeam "Beskydska"]
[BlackTeam "Poruba"]
[TimeControl "40/5400+30:1800+30"]

1. d4 {[%emt 0:00:00]} d5 {[%emt 0:00:00]} 2. c4 {[%emt 0:00:00]} c6 {[%emt 0:00:00]} 3. Nf3 {[%emt 0:00:17]} Nf6 {[%emt 0:00:00]} 4. e3 {[%emt 0:00:12]} Bg4 {[%emt 0:00:02]} 5. Qb3 {[%emt 0:00:46]} Qb6 {[%emt 0:01:27]} 6. Nc3 {[%emt 0:03:36]} Nbd7 {[%emt 0:11:29]} 7. Bd2 {[%emt 0:06:02]} e6 {[%emt 0:13:13]} 8. Nh4 {[%emt 0:11:09]} g5 {[%emt 0:08:59]} 9. h3 {[%emt 0:05:44]} Bh5 {[%emt 0:00:12]} 10. Nf3 {[%emt 0:05:35]} h6 {[%emt 0:06:03]} 11. Na4 {[%emt 0:16:03]} Qxb3 {[%emt 0:04:34]} 12. axb3 {[%emt 0:01:53]} a6 $11 {[%emt 0:01:19]} 13. Rc1 {[%emt 0:11:40]} Bd6 {[%emt 0:07:11]} 14. cxd5 {[%emt 0:05:37]} exd5 {[%emt 0:01:14]} 15. Nc5 {[%emt 0:01:58]} Bxc5 {[%emt 0:08:47]} 16. dxc5 {[%emt 0:00:07]} Ne4 {[%emt 0:00:02]} 17. b4 {[%emt 0:11:03]} Ke7 {[%emt 0:14:28]} 18. Nd4 {[%emt 0:04:13]} a5 {[%emt 0:02:35]} 19. b5 {[%emt 0:00:39]} Ndxc5 {[%emt 0:05:10]} 20. bxc6 {[%emt 0:01:32]} bxc6 {[%emt 0:02:05]} 21. Bxa5 {[%emt 0:00:46]} Rxa5 {[%emt 0:06:26]} 22. Nxc6+ {[%emt 0:00:08]} Kd6 {[%emt 0:00:01]} 23. Nxa5 Rb8 24. g4 {[%emt 0:06:18]} Rxb2 {[%emt 0:00:02]} 25. Rd1 {[%emt 0:03:23]} Ke6 {[%emt 0:03:22]} 26. Bg2 {[%emt 0:02:28]} Nxf2 {[%emt 0:01:22]} 27. Bxd5+ {[%emt 0:00:06]} Ke7 {[%emt 0:00:01]} 28. Nc6+ {[%emt 0:01:26]} Kd6 {[%emt 0:03:03]} 29. O-O {[%emt 0:00:11]} Nxd1 {[%emt 0:00:03]} 30. Rxd1 {[%emt 0:00:06]} Bg6 {[%emt 0:00:03]} 31. Bxf7+ {[%emt 0:00:24]} Bd3 {[%emt 0:00:30]} 32. Bg6 {[%emt 0:01:22]} Rb1 {[%emt 0:01:25]} 33. Rxb1 {[%emt 0:00:26]} Bxb1 {[%emt 0:00:07]} 34. Bxb1 {[%emt 0:00:10]} Kxc6 {[%emt 0:00:02]} 35. Kf2 {[%emt 0:00:31]} Kd5 {[%emt 0:00:10]} 36. Kf3 {[%emt 0:00:47]} Ke5 {[%emt 0:01:09]} 37. Bc2 {[%emt 0:00:10]} 1/2-1/2